bitfinex-derivatives/quotes_BTCF0:USTF0_20240913
["timestamp","ask_amount","ask_price","bid_price","bid_amount"]
[1726244783749,0.007,59728.0,59727.0,0.083701]
[1726244784451,0.01292638,59729.0,59727.0,0.083701]
[1726244784452,0.01792638,59729.0,59727.0,0.083701]
[1726244784652,0.005,59729.0,59728.0,0.0837]
[1726244786152,0.005,59729.0,59725.0,0.3395]
[1726244786344,0.005,59728.0,59727.0,0.001]
[1726244787049,0.009,59729.0,59728.0,0.001]
[1726244787351,0.005,59729.0,59728.0,0.001]
[1726244788145,0.083695,59732.0,59724.0,0.444505]
[1726244788355,0.005,59728.0,59727.0,0.001]
[1726244788950,0.005,59728.0,59727.0,0.084701]
[1726244790045,0.005,59728.0,59724.0,0.3608]
[1726244790046,0.092698,59729.0,59728.0,0.002]
[1726244790351,0.282698,59729.0,59728.0,0.002]
[1726244790554,1.65708,59729.0,59717.0,0.3608]
[1726244790754,0.19,59720.0,59717.0,0.3608]
[1726244792348,0.083706,59724.0,59717.0,0.3608]
[1726244792554,0.083702,59727.0,59718.0,0.083713]
[1726244792961,0.083702,59727.0,59719.0,0.083712]
[1726244793165,0.3626,59728.0,59717.0,0.3608]
[1726244793648,0.083704,59725.0,59717.0,0.3648]
[1726244793845,0.19,59724.0,59717.0,0.448514]
[1726244794055,0.083704,59725.0,59717.0,0.448514]
[1726244794262,0.083706,59724.0,59717.0,0.448514]
[1726244794456,0.273711,59720.0,59717.0,0.3648]
[1726244794661,0.083712,59719.0,59717.0,0.3648]
[1726244794955,0.19,59720.0,59717.0,0.3648]
[1726244795349,0.273712,59720.0,59717.0,0.3648]
[1726244795555,0.19,59720.0,59717.0,0.3648]
[1726244797751,0.1789,59723.0,59717.0,0.3648]
[1726244798158,0.27550825,59723.0,59717.0,0.3648]
[1726244799253,0.19,59719.0,59717.0,0.3648]
[1726244799459,0.19,59719.0,59717.0,0.004]
[1726244800258,0.19,59719.0,59712.0,0.083721]
[1726244800459,0.19,59719.0,59717.0,0.004]
[1726244800764,0.19180125,59723.0,59717.0,0.087715]
[1726244801066,0.01290125,59723.0,59717.0,0.004]
[1726244801258,0.3608,59730.0,59722.0,0.3608]
[1726244801455,0.444498,59730.0,59723.0,0.3469]
[1726244801662,0.09644919,59730.0,59728.0,0.3608]
[1726244801860,0.01275119,59730.0,59728.0,0.3608]
[1726244802055,0.1678,59738.0,59729.0,0.083698]
[1726244802362,0.1678,59738.0,59729.0,0.083697]
[1726244802550,0.18081777,59738.0,59729.0,0.083697]
[1726244803158,0.18081777,59738.0,59733.0,0.3608]
[1726244803362,0.18581777,59738.0,59733.0,0.3608]
[1726244803861,0.19081777,59738.0,59734.0,0.3608]
[1726244804066,0.19081777,59738.0,59729.0,0.085697]
[1726244804361,0.18581777,59738.0,59730.0,0.3608]
[1726244804673,0.19081777,59738.0,59733.0,0.001]
[1726244805262,0.02301777,59738.0,59733.0,0.001]
[1726244805471,0.02301777,59738.0,59737.0,0.3608]
[1726244805658,0.02301777,59738.0,59737.0,0.444487]
[1726244806165,0.01801777,59738.0,59737.0,0.444487]
[1726244806469,0.02301777,59738.0,59737.0,0.444487]
[1726244806659,0.01801777,59738.0,59737.0,1.546687]
[1726244806960,0.02301777,59738.0,59737.0,0.445487]
[1726244807165,0.02301777,59738.0,59737.0,0.446487]
[1726244812175,0.02301777,59738.0,59737.0,0.3628]
[1726244812362,0.21301777,59738.0,59737.0,0.3628]
[1726244812981,0.02301777,59738.0,59737.0,0.3628]
[1726244813276,0.02301777,59738.0,59737.0,0.446487]
[1726244816277,0.02301777,59738.0,59727.0,0.31086591]
[1726244816278,0.57381777,59738.0,59725.0,0.3608]
[1726244816470,0.19,59728.0,59725.0,0.3608]
[1726244817075,0.19,59728.0,59717.0,0.3618]
[1726244817275,0.19,59718.0,59717.0,0.3608]
[1726244817869,0.19,59718.0,59717.0,0.444515]
[1726244818064,0.19,59718.0,59717.0,0.3608]
[1726244818264,0.083707,59723.0,59717.0,0.3608]
[1726244818265,0.19,59721.0,59717.0,0.3608]
[1726244818481,0.19,59721.0,59717.0,0.3658]
[1726244819180,0.19,59718.0,59717.0,0.002]
[1726244819476,0.19,59718.0,59717.0,0.008]
[1726244820174,1.29236,59718.0,59704.0,0.3608]
[1726244820378,0.1721,59717.0,59709.0,0.3608]
[1726244821269,0.1721,59717.0,59715.0,0.3608]
[1726244822075,0.1731,59717.0,59715.0,0.3608]
[1726244823381,0.1741,59717.0,59715.0,0.3688]
[1726244823678,0.001,59717.0,59716.0,0.273717]
[1726244823977,0.001,59717.0,59716.0,0.083717]
[1726244825072,0.001,59717.0,59716.0,0.086717]
[1726244825676,0.001,59717.0,59716.0,0.003]
[1726244825877,0.01292083,59719.0,59716.0,0.003]
[1726244826075,0.001,59717.0,59716.0,0.01]
[1726244826277,0.001,59717.0,59716.0,0.3708]
[1726244826479,0.001,59717.0,59716.0,0.01]
[1726244826776,1.46416,59717.0,59705.0,0.0039]
[1726244826978,0.19,59706.0,59701.0,0.317]
[1726244827274,0.19,59702.0,59696.0,0.444544]
[1726244827479,0.3221,59705.0,59701.0,0.3608]
[1726244828375,0.33042503,59705.0,59701.0,0.3608]
[1726244828784,0.19,59702.0,59696.0,0.3648]
[1726244828971,0.19,59702.0,59696.0,0.448544]
[1726244829881,0.19,59702.0,59701.0,0.002]
[1726244830471,0.19,59702.0,59696.0,0.3608]
[1726244830671,0.191,59702.0,59696.0,0.3638]
[1726244830881,0.191,59702.0,59698.0,0.08374]
[1726244831175,0.193,59702.0,59698.0,0.08374]
[1726244831570,0.193,59702.0,59696.0,0.3638]
[1726244831772,0.19,59698.0,59696.0,0.007]
[1726244832076,0.19,59698.0,59696.0,0.004]
[1726244832271,0.083744,59697.0,59691.0,0.3608]
[1726244832473,0.19,59692.0,59684.0,0.36164]
[1726244832668,0.19,59686.0,59684.0,0.3608]
[1726244832870,0.19,59686.0,59684.0,0.7216]
[1726244833281,0.19,59686.0,59679.0,0.3608]
[1726244833785,0.191,59686.0,59684.0,0.01]
[1726244834087,0.001,59686.0,59684.0,0.01]
[1726244834578,0.001,59686.0,59685.0,0.3608]
[1726244834782,0.001,59686.0,59684.0,0.01]
[1726244834974,0.002,59686.0,59685.0,0.3608]
[1726244836379,0.002,59686.0,59685.0,0.3708]
[1726244837777,0.272,59686.0,59685.0,0.3818]
[1726244838374,0.355759,59686.0,59685.0,0.021]
[1726244838877,0.36873869,59686.0,59685.0,0.021]
[1726244839687,0.28497969,59686.0,59678.0,0.3608]
[1726244839887,0.28497969,59686.0,59667.0,0.1611]
[1726244839888,0.27,59679.0,59667.0,0.3647]
[1726244840093,0.3608,59676.0,59666.0,0.3608]
[1726244840288,0.3608,59681.0,59675.0,0.3608]
[1726244840490,0.27,59683.0,59675.0,0.3608]
[1726244840788,0.27,59683.0,59673.0,0.083776]
[1726244841190,0.27,59683.0,59677.0,0.3608]
[1726244841389,0.1678,59685.0,59678.0,0.014]
[1726244841585,0.25156,59685.0,59678.0,0.014]
[1726244841785,0.25156,59685.0,59671.0,0.3608]
[1726244841786,0.27,59683.0,59674.0,0.083776]
[1726244841987,0.271,59683.0,59677.0,0.3608]
[1726244842196,0.271,59683.0,59680.0,0.083766]
[1726244842197,0.001,59683.0,59680.0,0.083766]
[1726244842385,0.01397969,59686.0,59680.0,0.083766]
[1726244842588,0.001,59685.0,59680.0,0.083766]
[1726244842895,0.001,59685.0,59678.0,0.008]
[1726244843093,0.001,59683.0,59678.0,0.008]
[1726244843794,0.083772,59677.0,59671.0,0.3608]
[1726244843999,0.27,59673.0,59671.0,0.3608]
[1726244844196,0.3166,59676.0,59671.0,0.3608]
[1726244844380,0.3166,59676.0,59672.0,0.083778]
[1726244845389,0.3176,59676.0,59672.0,0.083778]
[1726244845995,0.3176,59676.0,59672.0,0.089778]
[1726244846393,0.33131181,59676.0,59672.0,0.089778]
[1726244846993,0.33131181,59676.0,59672.0,0.006]
[1726244847493,0.27,59673.0,59672.0,0.006]
[1726244847696,0.2781818,59673.0,59672.0,0.006]
[1726244848683,0.2791818,59673.0,59662.0,0.0496242]
[1726244848890,0.0101818,59673.0,59670.0,0.083781]
[1726244849198,0.0101818,59673.0,59672.0,0.083778]
[1726244850086,0.0101818,59673.0,59668.0,0.444583]
[1726244850504,0.0101818,59673.0,59669.0,0.083782]
[1726244850697,0.2801818,59673.0,59669.0,0.083782]
[1726244851497,0.0101818,59673.0,59669.0,0.083782]
[1726244851794,0.0101818,59673.0,59671.0,0.083779]
[1726244852193,0.0101818,59673.0,59672.0,0.083778]
[1726244853292,0.0091818,59673.0,59672.0,0.083778]
[1726244853587,0.0101818,59673.0,59672.0,0.083778]
[1726244854099,0.083762,59684.0,59678.0,0.08377]
[1726244854297,0.083762,59684.0,59677.0,0.3608]
[1726244854499,0.083762,59684.0,59681.0,0.083766]
[1726244854709,0.083762,59684.0,59677.0,0.3608]
[1726244854710,0.17320163,59685.0,59677.0,0.44457]
[1726244854890,0.083764,59682.0,59677.0,0.44457]
[1726244855687,0.002,59684.0,59680.0,0.083767]
[1726244856017,0.001,59684.0,59683.0,0.444563]
[1726244856193,0.001,59684.0,59677.0,0.3608]
[1726244856194,0.19,59684.0,59682.0,0.3608]
[1726244856593,0.0216759,59685.0,59682.0,0.3608]
[1726244856899,0.0206759,59685.0,59684.0,0.083761]
[1726244857202,0.0206759,59685.0,59683.0,0.0496242]
[1726244857203,0.1643,59688.0,59685.0,0.08376]
[1726244857400,0.19,59687.0,59685.0,0.08376]
[1726244857797,0.19,59687.0,59672.0,0.253578]
[1726244857798,0.19,59687.0,59674.0,0.0496242]
[1726244857995,0.19,59679.0,59674.0,0.0496242]
[1726244858298,0.19,59680.0,59679.0,0.083768]
[1726244859394,0.01,59680.0,59679.0,0.083768]
[1726244859597,0.2,59680.0,59679.0,0.083768]
[1726244860000,0.214,59680.0,59679.0,0.083768]
[1726244860495,0.214,59680.0,59673.0,0.0496242]
[1726244860704,0.19,59674.0,59671.0,0.4104242]
[1726244860904,0.19,59674.0,59672.0,0.0496242]
[1726244861103,0.19,59674.0,59671.0,0.4104242]
[1726244861402,0.19,59674.0,59673.0,0.0496242]
[1726244861696,0.19,59674.0,59673.0,0.083777]
[1726244861896,0.19,59674.0,59673.0,0.13360764]
[1726244862403,0.197,59674.0,59673.0,0.13360764]
[1726244862598,0.197,59674.0,59673.0,0.083777]
[1726244862809,0.202,59674.0,59673.0,0.083777]
[1726244863490,0.21482824,59674.0,59673.0,0.083777]
[1726244867101,0.21482824,59674.0,59673.0,0.13360764]
[1726244867301,0.21482824,59674.0,59665.0,0.08224685]
[1726244867302,1.67834824,59674.0,59665.0,0.06596591]
[1726244867611,0.19,59666.0,59665.0,0.083787]
[1726244869297,0.19,59666.0,59665.0,0.084787]
[1726244870306,0.191,59666.0,59665.0,0.084787]
[1726244871112,0.191,59666.0,59665.0,0.001]
[1726244871305,0.191,59666.0,59662.0,0.3538]
[1726244871499,0.1627,59665.0,59662.0,0.3538]
[1726244871804,0.322,59665.0,59662.0,0.3458]
[1726244872214,0.33030624,59665.0,59662.0,0.3458]
[1726244872707,0.33030624,59665.0,59663.0,0.083791]
[1726244873210,0.33030624,59665.0,59662.0,0.001]
[1726244873403,0.33130624,59665.0,59662.0,0.001]
[1726244873604,0.323,59665.0,59661.0,0.076794]
[1726244873800,0.19,59662.0,59661.0,0.076794]
[1726244873999,0.19836074,59662.0,59661.0,0.076794]
[1726244874702,0.00836074,59662.0,59661.0,0.076794]
[1726244874904,0.20277483,59666.0,59656.0,0.19]
[1726244875207,0.20277483,59666.0,59663.0,0.08379]
[1726244875208,0.001,59665.0,59663.0,0.08379]
[1726244875504,0.19,59664.0,59655.0,0.3608]
[1726244875806,0.002,59662.0,59655.0,0.3608]
[1726244876004,0.002,59662.0,59661.0,0.083794]
[1726244876510,0.001,59662.0,59661.0,0.083794]
[1726244877810,0.001,59662.0,59656.0,0.3608]
[1726244878015,0.19,59660.0,59659.0,0.083797]
[1726244880212,0.19,59660.0,59659.0,0.082892]
[1726244880412,0.191,59660.0,59659.0,0.082892]
[1726244882215,0.20483202,59660.0,59659.0,0.082892]
[1726244883420,0.01483202,59660.0,59659.0,0.082892]
[1726244883817,0.20483202,59660.0,59659.0,0.082892]
[1726244884410,0.20483202,59660.0,59656.0,0.3608]
[1726244884620,0.20483202,59660.0,59650.0,0.3196]
[1726244884621,0.1632,59659.0,59650.0,0.3196]
[1726244884920,0.1632,59659.0,59657.0,0.083798]
[1726244885216,0.1632,59659.0,59658.0,0.083798]
[1726244885725,0.1632,59659.0,59655.0,0.083801]
[1726244886019,0.19,59656.0,59655.0,0.083801]
[1726244887421,0.19,59656.0,59650.0,0.3196]
[1726244887422,0.5092,59659.0,59658.0,0.083798]
[1726244887623,0.5092,59659.0,59658.0,0.444598]
[1726244887624,0.1652,59659.0,59658.0,0.444598]
[1726244888324,0.01283202,59660.0,59659.0,0.083797]
[1726244888522,0.19,59663.0,59658.0,0.3608]
[1726244888825,0.1622,59665.0,59658.0,0.083798]
[1726244888826,0.19,59660.0,59658.0,0.083798]
[1726244889126,0.19,59660.0,59653.0,0.3608]
[1726244889318,0.001,59659.0,59653.0,0.3608]
[1726244890015,0.001,59659.0,59656.0,0.0838]
[1726244890214,0.19,59654.0,59652.0,0.083805]
[1726244890426,0.19,59654.0,59652.0,0.075805]
[1726244890925,0.19,59654.0,59650.0,0.083809]
[1726244890926,0.19830874,59654.0,59650.0,0.083809]
[1726244891219,0.19,59651.0,59650.0,0.083809]
[1726244891425,0.19841105,59651.0,59650.0,0.083809]
[1726244892420,0.19841105,59651.0,59643.0,0.3608]
[1726244892624,0.1591,59650.0,59643.0,0.3608]
[1726244892928,0.1591,59650.0,59649.0,0.083811]
[1726244894318,0.1711,59650.0,59649.0,0.083811]
[1726244894815,0.008,59651.0,59650.0,0.167618]
[1726244895019,0.01266474,59652.0,59651.0,0.167616]
[1726244895225,0.01266474,59652.0,59651.0,0.944344]
[1726244895419,0.36912569,59669.0,59667.0,0.083785]
[1726244895618,0.36912569,59669.0,59668.0,0.083784]
[1726244895826,0.02104688,59669.0,59668.0,0.083784]
[1726244896025,0.1567,59670.0,59668.0,0.083784]
[1726244896334,0.1567,59670.0,59657.0,0.1525]
[1726244896335,0.1567,59670.0,59669.0,0.083783]
[1726244896518,0.16520095,59670.0,59669.0,0.083783]
[1726244897727,0.17920095,59670.0,59669.0,0.083783]
[1726244898134,0.19144416,59670.0,59665.0,0.083788]
[1726244898330,0.19144416,59670.0,59666.0,0.083787]
[1726244898331,0.38144416,59670.0,59666.0,0.083787]
[1726244898518,0.39544416,59670.0,59669.0,0.001]
[1726244899426,0.39544416,59670.0,59667.0,0.083784]
[1726244899427,0.39244416,59670.0,59667.0,0.083784]
[1726244899630,0.38644416,59670.0,59667.0,0.083784]
[1726244899841,0.38644416,59670.0,59668.0,0.083784]
[1726244900129,0.37544416,59670.0,59668.0,0.083784]
[1726244900328,0.38944416,59670.0,59669.0,0.002]
[1726244900927,0.38944416,59670.0,59669.0,0.001]
[1726244902129,0.38844416,59670.0,59668.0,0.084784]
[1726244902329,0.38044416,59670.0,59668.0,0.084784]
[1726244902530,0.39444416,59670.0,59669.0,0.001]
[1726244902830,0.39444416,59670.0,59669.0,0.002]
[1726244903634,0.39444416,59670.0,59669.0,0.001]
[1726244904028,0.38044416,59670.0,59669.0,0.084683]
[1726244904228,0.39444416,59670.0,59669.0,0.085683]
[1726244905924,0.20444416,59670.0,59669.0,0.085683]
[1726244906633,0.20444416,59670.0,59669.0,0.0019]
[1726244908235,0.20444416,59670.0,59669.0,0.085683]
[1726244911539,0.20706416,59670.0,59669.0,0.085683]
[1726244912245,0.05036416,59670.0,59669.0,0.085683]
[1726244913951,0.05036416,59670.0,59669.0,0.169466]
[1726244914945,0.05036416,59670.0,59669.0,0.085683]
[1726244915149,0.32414516,59670.0,59669.0,0.0019]
[1726244915344,0.24036416,59670.0,59658.0,0.1574]
[1726244915552,0.19,59660.0,59659.0,0.083797]
[1726244916548,0.19,59660.0,59657.0,0.3608]
[1726244916750,0.199,59660.0,59659.0,0.001]
[1726244916957,0.199,59660.0,59659.0,0.084797]
[1726244917455,0.199,59660.0,59659.0,0.001]
[1726244917869,0.203,59660.0,59659.0,0.001]
[1726244918055,0.203,59660.0,59659.0,0.084797]
[1726244918657,0.212,59660.0,59659.0,0.085797]
[1726244919048,0.212,59660.0,59659.0,0.002]
[1726244920946,0.22534168,59660.0,59659.0,0.002]
[1726244921156,0.22634168,59660.0,59659.0,0.002]
[1726244921958,0.03634168,59660.0,59659.0,0.002]
[1726244922163,0.03634168,59660.0,59659.0,0.085797]
[1726244922354,0.02634168,59660.0,59659.0,0.084797]
[1726244922556,0.03634168,59660.0,59659.0,0.085797]
[1726244923854,0.03634168,59660.0,59659.0,1.188637]
[1726244924665,0.03634168,59660.0,59659.0,0.085797]
[1726244925165,0.03634168,59660.0,59659.0,0.588637]
[1726244925962,0.03634168,59660.0,59659.0,0.085797]
[1726244927467,0.024,59660.0,59659.0,1.272434]
[1726244927657,0.024,59660.0,59659.0,1.188637]
[1726244930362,0.024,59660.0,59659.0,0.085797]
[1726244932669,0.107795,59660.0,59659.0,0.085797]
[1726244932966,0.107795,59660.0,59659.0,0.002]
[1726244933261,0.024,59660.0,59659.0,0.085797]
[1726244938069,0.024,59660.0,59659.0,0.275797]
[1726244938660,0.024,59660.0,59659.0,0.085797]
[1726244939067,0.107795,59660.0,59659.0,0.002]
[1726244940179,0.024,59660.0,59659.0,0.002]
[1726244940360,0.024,59660.0,59659.0,0.085797]
[1726244941765,0.024,59660.0,59659.0,0.002]
[1726244944765,0.024,59660.0,59659.0,0.085797]
[1726244947569,0.024,59660.0,59659.0,0.588637]
[1726244947964,0.024,59660.0,59659.0,0.085797]
[1726244952577,0.024,59660.0,59659.0,1.42219691]
[1726244952766,0.024,59660.0,59659.0,1.356231]
[1726244952967,0.024,59660.0,59659.0,1.42219691]
[1726244953388,0.024,59660.0,59659.0,1.356231]
[1726244954274,0.00850095,59670.0,59659.0,1.17080591]
[1726244954475,0.083773,59677.0,59670.0,0.083781]
[1726244954876,0.16224183,59671.0,59670.0,0.083781]
[1726244955072,0.01204183,59671.0,59670.0,0.083781]
[1726244955269,0.31647923,59678.0,59677.0,0.083771]
[1726244955474,0.31647923,59678.0,59677.0,0.444571]
[1726244955774,0.32905077,59678.0,59677.0,0.444571]
[1726244957479,0.35605077,59678.0,59677.0,0.446571]
[1726244957989,0.35605077,59678.0,59677.0,0.3628]
[1726244958169,0.43982077,59678.0,59677.0,0.002]
[1726244959081,0.35605077,59678.0,59677.0,0.002]
[1726244960875,0.35605077,59678.0,59677.0,0.085771]
[1726244964887,0.35605077,59678.0,59677.0,0.002]
[1726244965878,0.43982077,59678.0,59677.0,0.002]
[1726244966086,0.43982077,59678.0,59669.0,0.3608]
[1726244966087,0.083777,59674.0,59669.0,0.083782]
[1726244966383,0.083777,59674.0,59664.0,0.3608]
[1726244966384,0.19,59672.0,59664.0,0.3608]
[1726244967081,0.19836575,59672.0,59664.0,0.3608]
[1726244967284,0.19836575,59672.0,59670.0,0.3608]
[1726244968199,0.21136575,59672.0,59670.0,0.3608]
[1726244968782,0.03536575,59672.0,59671.0,0.08378]
[1726244968986,0.027,59672.0,59671.0,0.16756]
[1726244969186,0.03933424,59672.0,59671.0,0.16756]
[1726244969387,0.02533424,59672.0,59671.0,0.08378]
[1726244970098,0.01233424,59672.0,59671.0,0.08378]
[1726244970286,0.3081,59678.0,59677.0,0.083771]
[1726244970688,0.31635464,59678.0,59677.0,0.083771]
[1726244971294,0.32871893,59678.0,59677.0,0.083771]
[1726244973301,0.35671893,59678.0,59677.0,0.085771]
[1726244973891,0.04036429,59678.0,59677.0,0.169542]
[1726244974391,0.04036429,59678.0,59677.0,0.085771]
[1726244978006,0.04036429,59678.0,59677.0,0.002]
[1726244988005,0.12413429,59678.0,59677.0,0.002]
[1726244988503,0.31413429,59678.0,59677.0,0.002]
[1726244989104,0.31413429,59678.0,59669.0,0.27928]
[1726244989304,0.23036429,59678.0,59669.0,0.27928]
[1726244990105,0.083772,59677.0,59671.0,0.083779]
[1726244990408,0.23036429,59678.0,59669.0,0.28028]
[1726244990711,0.083775,59675.0,59669.0,0.364062]
[1726244991008,0.341,59674.0,59669.0,0.364062]
[1726244991208,0.341,59674.0,59671.0,0.001]
[1726244992611,0.355,59674.0,59671.0,0.002]
[1726244993120,0.355,59674.0,59671.0,0.001]
[1726244994012,0.3608,59673.0,59669.0,0.001]
[1726244994209,0.19,59670.0,59664.0,0.3608]
[1726244994403,0.273781,59670.0,59665.0,0.083787]
[1726244994713,0.3608,59673.0,59664.0,0.3608]
[1726244994906,0.083777,59673.0,59667.0,0.083784]
[1726244995316,0.014,59673.0,59669.0,0.001]
[1726244995811,0.014,59673.0,59667.0,0.083784]
[1726244996105,0.08378,59671.0,59669.0,0.001]
[1726244996427,0.19,59670.0,59669.0,0.001]
[1726244996712,0.19,59670.0,59669.0,0.002]
[1726244996903,0.19,59670.0,59669.0,0.001]
[1726244997305,0.273781,59670.0,59669.0,0.001]
[1726244997918,0.287781,59670.0,59669.0,0.002]
[1726244998715,0.648581,59670.0,59669.0,0.002]
[1726244998912,0.66087528,59670.0,59669.0,0.001]
[1726244999115,0.67487528,59670.0,59669.0,0.002]
[1726244999615,0.04029428,59670.0,59669.0,1.549343]
[1726245000015,0.04029428,59670.0,59669.0,0.446583]
[1726245000813,0.19283449,59670.0,59669.0,0.41216942]
[1726245001617,0.26158807,59670.0,59669.0,0.25865882]
[1726245001917,0.32671197,59670.0,59669.0,1.44520182]
[1726245002322,0.08231197,59670.0,59669.0,1.44520182]
[1726245002622,0.26767891,59672.0,59671.0,0.08378]
[1726245002919,9.1e-07,59672.0,59671.0,0.35756]
[1726245003121,0.01234721,59687.0,59686.0,0.083759]
[1726245003311,0.1628,59693.0,59690.0,0.083753]
[1726245003508,0.18319207,59693.0,59691.0,0.083752]
[1726245003714,0.18319207,59693.0,59681.0,0.3608]
[1726245003715,0.18319207,59693.0,59687.0,0.19]
[1726245004015,0.26694207,59693.0,59687.0,0.19]
[1726245004420,0.26694207,59693.0,59687.0,0.273757]
[1726245004716,0.26694207,59693.0,59690.0,0.083753]
[1726245004717,0.18319207,59693.0,59690.0,0.083753]
[1726245005225,0.18319207,59693.0,59691.0,0.19]
[1726245005520,0.01197184,59693.0,59691.0,0.19]
[1726245005722,0.003,59693.0,59692.0,0.08375]
[1726245006113,0.00851662,59697.0,59692.0,0.08375]
[1726245006316,0.003,59693.0,59692.0,0.08375]
[1726245006613,0.08375,59692.0,59691.0,0.001]
[1726245006819,0.23545,59692.0,59691.0,0.001]
[1726245007526,0.083752,59691.0,59690.0,0.001]
[1726245007755,0.13516392,59691.0,59690.0,0.001]
[1726245007928,0.083758,59687.0,59680.0,0.0039]
[1726245008132,0.083758,59687.0,59679.0,0.083768]
[1726245008133,0.19,59684.0,59679.0,0.083768]
[1726245008814,0.3139,59686.0,59675.0,0.19]
[1726245009017,0.3608,59684.0,59680.0,0.083767]
[1726245009220,0.3608,59684.0,59681.0,0.083766]
[1726245009424,0.3139,59686.0,59681.0,0.083766]
[1726245010812,0.19,59684.0,59680.0,0.001]
[1726245011024,0.5508,59684.0,59680.0,0.001]
[1726245011329,0.05141768,59683.0,59681.0,0.001]
[1726245011519,0.3628,59684.0,59681.0,0.001]
[1726245011717,0.25765463,59683.0,59675.0,0.00654418]
[1726245011918,0.25765463,59682.0,59674.0,0.083774]
[1726245012226,0.25765463,59681.0,59675.0,0.083774]
[1726245012421,0.25765463,59680.0,59675.0,0.083774]
[1726245012616,0.25765463,59679.0,59675.0,0.083774]
[1726245012817,0.3608,59677.0,59672.0,0.19]
[1726245013020,0.25765463,59676.0,59672.0,0.19]
[1726245013225,0.3608,59677.0,59672.0,0.19]
[1726245013226,0.34372723,59675.0,59673.0,0.083777]
[1726245013443,0.34372723,59674.0,59673.0,0.04005582]
[1726245013616,0.49482723,59674.0,59669.0,0.083782]
[1726245013824,0.34372723,59673.0,59669.0,0.083782]
[1726245014124,0.25765463,59672.0,59669.0,0.083782]
[1726245014318,0.25765463,59671.0,59669.0,0.083782]
[1726245014514,0.25765463,59670.0,59665.0,0.083788]
[1726245014822,0.15418,59672.0,59663.0,0.00092]
[1726245014823,0.273788,59666.0,59663.0,0.00092]
[1726245015127,0.50334263,59665.0,59656.0,0.3608]
[1726245015322,0.2671993,59659.0,59656.0,0.3608]
[1726245015530,0.18024561,59658.0,59657.0,0.083799]
[1726245017024,0.18024561,59658.0,59657.0,0.085799]
[1726245017025,0.18026071,59658.0,59657.0,0.085799]
[1726245017728,0.18026071,59658.0,59657.0,0.002]
[1726245018131,0.12788613,59658.0,59657.0,0.085799]
[1726245018831,0.01637087,59658.0,59657.0,0.083799]
[1726245019132,0.01237087,59658.0,59657.0,0.083799]
[1726245019336,0.004,59658.0,59657.0,0.083799]
[1726245019833,0.007,59658.0,59657.0,0.083799]
[1726245020938,0.087674,59676.0,59657.0,1.73508]
[1726245021133,0.09604709,59676.0,59674.0,0.083775]
[1726245021832,0.083774,59675.0,59674.0,0.083775]
[1726245022228,0.01227309,59676.0,59674.0,0.19]
[1726245022431,0.3608,59678.0,59677.0,0.083771]
[1726245022836,0.3608,59678.0,59672.0,0.083778]
[1726245023034,0.3608,59678.0,59674.0,0.001]
[1726245023035,0.083774,59675.0,59674.0,0.001]
[1726245023226,0.37263633,59678.0,59677.0,0.083771]
[1726245024041,0.01183633,59678.0,59677.0,0.083771]
[1726245024229,0.083768,59680.0,59677.0,0.084771]
[1726245024535,0.444568,59680.0,59677.0,0.084771]
[1726245024833,0.01236869,59680.0,59679.0,0.083768]
[1726245025040,0.00100001,59682.0,59681.0,0.083766]
[1726245025333,0.00088,59692.0,59688.0,0.083755]
[1726245025637,0.52845717,59694.0,59686.0,0.19]
[1726245025934,0.52845717,59694.0,59690.0,0.083753]
[1726245025935,0.52757717,59694.0,59690.0,0.083753]
[1726245026530,0.52757717,59694.0,59693.0,0.083749]
[1726245026933,0.52757717,59694.0,59690.0,0.19]
[1726245027137,0.16677717,59694.0,59690.0,0.19]
[1726245027450,0.16677717,59694.0,59693.0,0.083749]
[1726245028947,0.16677717,59694.0,59693.0,0.084749]
[1726245029135,0.16677717,59694.0,59693.0,0.085749]
[1726245029441,0.01177717,59694.0,59693.0,0.085749]
[1726245029641,0.3104,59698.0,59693.0,0.002]
[1726245029840,0.3104,59698.0,59696.0,0.083745]
[1726245030233,0.3104,59698.0,59693.0,0.085748]
[1726245030537,0.3104,59698.0,59693.0,0.002]
[1726245030538,0.3608,59694.0,59693.0,0.002]
[1726245030741,0.3608,59694.0,59693.0,0.085749]
[1726245031038,0.3608,59694.0,59693.0,0.002]
[1726245031261,0.5508,59694.0,59693.0,0.001]
[1726245031435,0.5508,59694.0,59681.0,0.0039]
[1726245031637,0.5508,59682.0,59678.0,0.08377]
[1726245031840,0.32412216,59681.0,59678.0,0.08377]
[1726245032043,0.68492216,59681.0,59675.0,0.317]
[1726245032240,0.32412216,59681.0,59676.0,0.19]
[1726245032938,0.32412216,59681.0,59680.0,0.083767]
[1726245033343,0.68492216,59681.0,59680.0,0.083767]
[1726245033847,0.86516962,59681.0,59678.0,0.001]
[1726245034043,0.2671993,59679.0,59678.0,0.084769]
[1726245034241,0.44744676,59679.0,59678.0,0.084769]
[1726245034745,0.44744676,59679.0,59678.0,0.083769]
[1726245034950,0.18024746,59679.0,59678.0,0.083769]
[1726245035145,0.11150131,59679.0,59678.0,0.083769]
[1726245035536,0.11150131,59679.0,59678.0,0.084769]
[1726245035835,0.18024746,59679.0,59678.0,0.084769]
[1726245036031,0.18024746,59679.0,59678.0,1.187449]
[1726245036232,0.02312531,59679.0,59678.0,1.272219]